bitfinex-derivatives/quotes_ETHF0:USTF0_20250816
["timestamp","ask_amount","ask_price","bid_price","bid_amount"]
[1755325341534,1.4413,4431.6,4431.5,23.37815252]
[1755325342235,1.4413,4431.6,4431.5,21.1108]
[1755325342434,1.4413,4431.6,4431.5,20.691]
[1755325342634,1.58481479,4431.6,4431.5,20.691]
[1755325342834,1.58481479,4431.6,4430.9,5.4799936]
[1755325342835,0.5714,4431.2,4430.9,1.45115252]
[1755325343030,1.1985,4431.0,4430.9,0.6412]
[1755325343229,1.5938387,4431.0,4430.9,20.69]
[1755325343830,1.5938387,4431.0,4430.9,20.934]
[1755325344036,1.5938387,4431.0,4430.9,21.734]
[1755325344231,1.5938387,4431.0,4430.9,20.69]
[1755325344232,1.4503,4431.0,4430.9,20.69]
[1755325344432,1.59376105,4431.0,4430.6,2.08895252]
[1755325344633,0.8789,4430.9,4430.7,20.687]
[1755325344938,1.4503,4430.8,4430.7,21.9065]
[1755325345633,0.5714,4430.8,4430.6,1.45115252]
[1755325345840,1.4503,4430.7,4430.6,1.45115252]
[1755325346038,1.4503,4430.7,4430.6,22.13715252]
[1755325346738,1.4503,4430.7,4430.6,22.77835252]
[1755325347236,1.4503,4430.7,4430.6,0.244]
[1755325347537,1.4503,4430.7,4430.5,20.682]
[1755325347538,1.4503,4430.6,4430.5,20.682]
[1755325347739,1.4503,4430.6,4430.0,2.03285252]
[1755325347740,1.4503,4430.1,4430.0,2.03285252]
[1755325347942,1.4503,4430.1,4430.0,22.71485252]
[1755325348440,1.4503,4430.1,4430.0,23.35265252]
[1755325349738,1.4503,4430.1,4430.0,23.60075252]
[1755325350336,1.0672,4430.1,4430.0,23.60075252]
[1755325351037,1.0672,4430.1,4430.0,23.59675252]
[1755325352136,1.4503,4430.1,4430.0,23.59675252]
[1755325352535,1.4503,4430.1,4430.0,23.34865252]
[1755325352847,1.4503,4430.1,4430.0,23.10805252]
[1755325353145,1.4503,4430.1,4430.0,22.53535252]
[1755325353340,0.8789,4429.8,4429.5,0.3972]
[1755325353638,0.2518,4430.5,4429.8,0.9789]
[1755325353838,0.1671,4429.9,4429.8,0.5817]
[1755325354039,1.2063,4429.9,4429.8,21.5078]
[1755325354342,1.4503,4429.9,4429.8,22.1456]
[1755325354539,0.244,4430.1,4429.8,21.2597]
[1755325354743,0.5736,4430.1,4430.0,1.4676]
[1755325354946,0.5736,4430.1,4430.0,23.59875252]
[1755325355744,0.8254,4430.1,4430.0,23.59875252]
[1755325355943,0.5736,4430.1,4430.0,2.91875252]
[1755325356245,0.5736,4430.1,4430.0,23.59875252]
[1755325356539,3.2078,4430.6,4430.0,23.59875252]
[1755325356842,0.93518098,4430.5,4430.4,1.4676]
[1755325357043,1.09768098,4430.5,4430.4,21.8995]
[1755325357242,1.34948098,4430.5,4430.4,21.8995]
[1755325357445,1.59348098,4430.5,4430.4,21.8995]
[1755325358246,1.59348098,4430.5,4430.4,20.68]
[1755325359046,0.5714,4429.9,4429.8,0.9789]
[1755325359246,1.4503,4429.9,4429.8,21.9005]
[1755325359449,1.4503,4429.9,4429.8,1.2195]
[1755325359650,1.4503,4429.9,4429.8,21.2627]
[1755325359948,1.4503,4429.9,4429.8,21.9005]
[1755325360639,1.4503,4429.9,4429.8,1.2195]
[1755325360841,1.4503,4429.9,4429.8,21.9005]
[1755325362846,1.4503,4429.9,4429.8,1.2195]
[1755325363049,1.4503,4429.9,4429.8,21.9005]
[1755325364050,0.5736,4429.9,4429.8,22.1486]
[1755325364244,0.5736,4429.9,4429.8,22.1496]
[1755325364647,0.5714,4430.5,4430.4,0.5817]
[1755325364942,0.71455424,4430.5,4430.4,21.2637]
[1755325365250,1.59345424,4430.5,4430.4,21.2637]
[1755325365447,1.59345424,4430.5,4430.4,21.9015]
[1755325365648,1.4503,4430.5,4430.4,21.9015]
[1755325366051,0.4111,4430.9,4430.8,0.3377]
[1755325366247,0.4111,4430.9,4430.8,22.47085252]
[1755325366447,0.4111,4430.9,4430.8,22.71485252]
[1755325366750,0.4111,4430.9,4430.8,23.60075252]
[1755325367353,0.5736,4430.9,4430.8,23.60075252]
[1755325367646,1.4503,4430.9,4430.8,21.2637]
[1755325367851,1.4503,4430.9,4430.8,21.0882]
[1755325368855,1.4729,4430.5,4430.4,1.70505252]
[1755325369051,1.4729,4430.5,4430.4,23.35995252]
[1755325369852,0.4935,4431.0,4430.9,0.2539]
[1755325370052,1.085,4431.0,4430.9,20.9349]
[1755325370253,1.4729,4431.0,4430.9,21.6501]
[1755325370559,1.61812207,4431.0,4430.9,21.9078]
[1755325371161,0.5878,4431.0,4430.9,21.9078]
[1755325371458,0.5878,4431.0,4430.9,22.1723]
[1755325371852,0.4235,4431.0,4430.9,22.1723]
[1755325372058,0.2524,4431.2,4431.0,0.899]
[1755325372256,3.2078,4431.3,4431.2,1.4913]
[1755325372462,3.35312629,4431.3,4431.2,22.1723]
[1755325372760,3.77662629,4431.3,4431.2,22.1723]
[1755325372960,0.56882629,4431.3,4431.2,22.1723]
[1755325373155,0.9644,4431.0,4430.9,1.0612]
[1755325373355,1.4729,4431.0,4430.9,21.7412]
[1755325373559,1.4729,4431.0,4430.9,21.9068]
[1755325374866,0.1711,4431.2,4431.1,0.85]
[1755325375063,0.31640554,4431.2,4431.1,22.1713]
[1755325375265,0.8439,4431.2,4431.1,22.1713]
[1755325375464,1.4729,4431.2,4431.1,22.1713]
[1755325375668,1.4729,4431.2,4431.1,21.9068]
[1755325375858,3.2078,4431.9,4431.1,21.579]
[1755325376066,4.6807,4431.9,4431.8,1.2268]
[1755325376264,4.82598722,4431.9,4431.8,21.9048]
[1755325377063,1.6181349,4431.9,4431.8,21.9048]
[1755325377763,1.2302349,4431.9,4431.8,22.1693]
[1755325377963,1.2302349,4431.9,4431.8,23.62045252]
[1755325378159,0.8098349,4431.9,4431.8,23.62045252]
[1755325378364,1.6181349,4431.9,4431.8,23.62045252]
[1755325378962,1.6181349,4431.9,4431.8,21.9048]
[1755325379472,1.4729,4431.9,4431.8,21.9048]
[1755325380369,0.4235,4431.9,4431.8,23.62045252]
[1755325380577,0.4235,4432.1,4432.0,0.5923]
[1755325380878,0.56858286,4432.1,4432.0,22.1693]
[1755325381269,0.4235,4432.1,4432.0,22.1693]
[1755325381469,0.5878,4432.1,4432.0,22.1693]
[1755325381666,1.085,4432.1,4432.0,22.1693]
[1755325381867,1.61794121,4432.1,4432.0,21.9048]
[1755325382265,1.085,4432.1,4432.0,21.9048]
[1755325382572,0.4235,4432.1,4432.0,22.1693]
[1755325382772,0.5878,4432.1,4432.0,22.1693]
[1755325382973,1.4729,4432.1,4432.0,22.1693]
[1755325383172,0.1,4432.2,4432.1,1.4913]
[1755325383372,0.1,4432.2,4432.1,2.94245252]
[1755325386777,0.3524,4432.2,4432.1,2.94245252]
[1755325388772,1.5729,4432.2,4432.1,2.94245252]
[1755325388972,1.5729,4432.2,4432.1,21.1007]
[1755325389572,1.5729,4432.2,4432.1,21.9008]
[1755325390576,1.5729,4432.2,4431.3,1.08547]
[1755325390878,1.4729,4432.1,4432.0,0.2539]
[1755325391073,1.4729,4432.1,4432.0,20.9269]
[1755325391679,1.4729,4432.1,4432.0,0.2539]
[1755325391882,1.4729,4432.1,4432.0,21.0997]
[1755325392180,1.4729,4432.1,4432.0,21.8998]
[1755325397183,1.4729,4432.1,4432.0,21.8988]
[1755325397688,1.4729,4432.1,4432.0,1.2268]
[1755325397983,1.4729,4432.1,4432.0,21.8988]
[1755325398581,1.4729,4432.1,4432.0,1.2268]
[1755325398781,1.4729,4432.1,4432.0,21.8988]
[1755325398981,1.4729,4432.1,4432.0,21.4683]
[1755325399885,1.4729,4432.1,4432.0,20.9259]
[1755325400288,1.4729,4432.1,4432.0,21.6341]
[1755325400490,1.4729,4432.1,4432.0,21.8744]
[1755325402391,1.61833216,4432.1,4432.0,21.8744]
[1755325402682,1.61833216,4432.1,4432.0,20.672]
[1755325402881,1.61832762,4432.1,4432.0,20.9273]
[1755325403187,1.61832762,4432.1,4432.0,21.6355]
[1755325403389,1.61832762,4432.1,4432.0,21.8758]
[1755325405490,1.61832762,4432.1,4432.0,1.2038]
[1755325405790,1.61832762,4432.1,4432.0,21.8748]
[1755325406391,1.4638,4431.7,4431.6,0.9635]
[1755325406590,1.4638,4431.3,4431.2,6.4356936]
[1755325406790,1.4638,4431.3,4431.2,25.0826]
[1755325408184,1.4638,4431.3,4431.2,3.6258]
[1755325408390,1.4638,4431.3,4431.2,25.0826]
[1755325408589,1.2176,4431.3,4431.2,25.3449]
[1755325408790,0.8375,4431.3,4431.2,25.3449]
[1755325411488,1.2176,4431.3,4431.2,25.3449]
[1755325412692,1.4638,4431.3,4431.2,25.3449]
[1755325412888,1.4638,4431.3,4431.2,4.1713]
[1755325413093,1.4638,4431.3,4431.2,0.5791]
[1755325413388,1.4638,4431.3,4431.2,21.089]
[1755325413590,1.60938192,4431.3,4431.2,21.089]
[1755325414496,0.5861,4431.1,4431.0,1.45115252]
[1755325414695,1.4638,4431.1,4431.0,22.12215252]
[1755325415092,1.4638,4431.1,4431.0,1.0427]
[1755325415293,1.4638,4431.1,4431.0,21.4744]
[1755325415492,1.4638,4431.1,4431.0,1.0427]
[1755325415688,1.4638,4431.1,4431.0,21.8758]
[1755325418391,0.2505,4431.0,4430.7,3.2078]
[1755325418596,0.8366,4431.0,4430.9,1.2038]
[1755325418890,0.8366,4431.0,4430.9,1.4661]
[1755325419095,1.4638,4431.0,4430.9,1.4661]
[1755325419291,1.4638,4431.0,4430.9,1.2038]
[1755325419894,1.4638,4431.0,4430.9,1.4661]
[1755325420098,1.4638,4431.0,4430.9,1.2038]
[1755325420396,0.8777,4430.9,4430.4,2.0240936]
[1755325420598,1.4638,4430.5,4430.4,1.2038]
[1755325420796,1.4638,4430.5,4430.4,21.8748]
[1755325421093,1.4638,4430.5,4430.4,21.6345]
[1755325421299,1.60931816,4430.5,4430.1,1.69145252]
[1755325421599,1.4638,4430.2,4430.1,2.03025252]
[1755325421796,1.4638,4430.2,4430.1,22.96355252]
[1755325421995,1.4638,4430.2,4430.1,23.58825252]
[1755325422196,1.4638,4430.2,4430.1,2.91725252]
[1755325422396,1.4638,4430.2,4430.1,23.58825252]
[1755325422598,1.4638,4430.2,4430.1,2.65495252]
[1755325422798,1.4638,4430.2,4430.1,23.32595252]
[1755325423994,0.4976,4430.1,4430.0,3.2078]
[1755325424297,0.2505,4430.1,4430.0,25.3459]
[1755325425498,0.5904,4431.1,4431.0,1.2038]
[1755325425696,0.73576956,4431.1,4431.0,23.58925252]
[1755325426197,0.98286956,4431.1,4431.0,23.58925252]
[1755325426597,1.36296956,4431.1,4431.0,23.58925252]
[1755325427493,1.60916956,4431.1,4431.0,20.9273]
[1755325427702,1.4638,4430.5,4430.4,1.2038]
[1755325427998,1.4638,4430.5,4430.4,21.8758]
[1755325428391,1.4638,4430.5,4430.4,21.6355]
[1755325428597,1.4638,4430.5,4430.4,0.9635]
[1755325428797,0.8903,4430.4,4430.1,0.2496]
[1755325428996,1.4772,4430.2,4430.1,1.0214]
[1755325429188,1.4772,4430.2,4430.1,21.8677]
[1755325429502,1.4772,4430.2,4430.1,22.128]
[1755325429994,0.5017,4431.1,4430.2,0.2603]
[1755325430299,1.4772,4430.8,4430.7,2.64685252]
[1755325430498,1.62250853,4430.8,4430.7,23.57915252]
[1755325430699,0.40770853,4430.8,4430.7,23.57915252]
[1755325430995,0.2624,4431.1,4430.8,0.8688]
[1755325431201,1.2286,4431.1,4431.0,1.1957]
[1755325431500,1.37390979,4431.1,4431.0,1.1957]
[1755325431695,1.62250979,4431.1,4431.0,1.1957]
[1755325433797,0.2624,4431.6,4431.1,0.6085]
[1755325434001,0.8493,4431.6,4431.5,0.5872]
[1755325434196,1.62252157,4431.6,4431.5,21.6181]
[1755325434796,1.62252157,4431.6,4431.5,21.0849]
[1755325436000,1.62252157,4431.6,4431.5,21.8677]
[1755325437302,1.62260176,4431.6,4431.5,21.8677]
[1755325438707,1.62260176,4431.6,4431.5,21.4438]
[1755325438909,1.62260176,4431.6,4431.5,20.672]
[1755325439205,1.62260176,4431.6,4431.3,20.671]
[1755325439399,1.4772,4431.4,4431.3,20.671]
[1755325439598,1.62260176,4431.4,4431.3,20.671]
[1755325440004,0.5869,4431.0,4430.9,0.8368]
[1755325440205,1.4772,4431.0,4430.9,21.5068]
[1755325440499,1.4772,4431.0,4430.9,21.7671]
[1755325440709,1.4772,4431.0,4430.9,22.126]
[1755325441202,1.4772,4431.0,4430.9,21.8657]
[1755325441405,1.4772,4431.0,4430.9,1.1957]
[1755325441706,1.4772,4431.0,4430.9,21.8657]
[1755325442106,1.4772,4431.0,4430.9,22.126]
[1755325442911,1.62271859,4431.0,4430.9,21.8657]
[1755325443209,0.14551859,4431.0,4430.9,21.8657]
[1755325443412,0.40791859,4431.0,4430.9,22.126]
[1755325443814,0.58031859,4431.0,4430.9,22.126]
[1755325445410,0.58031859,4431.0,4430.9,22.125]
[1755325445617,0.81961859,4431.0,4430.9,22.125]
[1755325446916,0.99481859,4431.0,4430.9,20.669]
[1755325447220,1.62271859,4431.0,4430.9,20.669]
[1755325447420,1.62271859,4431.0,4430.9,21.0819]
[1755325447712,1.62271859,4431.0,4430.9,21.8647]
[1755325447917,0.58031859,4431.0,4430.9,22.125]
[1755325448218,0.74621859,4431.0,4430.9,22.125]
[1755325448417,1.37411859,4431.0,4430.9,22.125]
[1755325448619,1.62271859,4431.0,4430.9,22.125]
[1755325448822,1.62271859,4431.0,4430.9,21.8647]
[1755325449216,1.62271859,4431.0,4430.9,1.1957]
[1755325449416,1.62271859,4431.0,4430.9,21.8637]
[1755325449619,1.62271859,4431.0,4430.9,1.1957]
[1755325449818,1.62271859,4431.0,4430.9,21.8637]
[1755325450018,1.62271859,4431.0,4430.9,1.1957]
[1755325450225,1.62271859,4431.0,4430.9,21.8637]
[1755325450418,0.5869,4430.3,4430.2,2.8608936]
[1755325450620,1.4772,4430.3,4430.2,23.8877936]
[1755325450817,1.62282968,4430.3,4430.2,21.8637]
[1755325453523,1.62282968,4430.3,4430.2,1.1957]
[1755325453720,1.62282968,4430.3,4430.2,21.8627]
[1755325453921,1.62282968,4430.3,4430.2,1.1957]
[1755325454122,1.62282968,4430.3,4430.2,22.124]
[1755325454525,1.62282968,4430.3,4430.2,21.8637]
[1755325455113,1.62282968,4430.3,4430.2,21.2552]
[1755325455721,1.62282968,4430.3,4430.2,21.8637]
[1755325456421,0.5869,4430.0,4429.9,32.7416]
[1755325456621,1.4772,4430.0,4429.9,53.4086]
[1755325457119,0.84,4430.0,4429.9,53.7675]
[1755325457322,1.4772,4430.0,4429.9,53.7675]
[1755325457519,1.4772,4430.0,4429.9,54.0278]
[1755325458130,1.4772,4430.0,4429.9,0.7768]
[1755325458430,1.62279743,4430.0,4429.9,20.667]
[1755325458626,1.62279743,4430.0,4429.9,21.8973]
[1755325461531,1.62279743,4430.0,4429.9,22.1587]
[1755325462232,1.62236941,4430.0,4429.9,22.1587]
[1755325463934,1.23376941,4430.0,4429.9,22.1587]
[1755325464139,0.57996941,4430.0,4429.9,22.1587]
[1755325464432,0.40756941,4430.0,4429.9,22.1587]
[1755325464734,0.2624,4430.0,4429.9,22.1587]
[1755325465333,3.4503,4430.7,4430.2,0.636]
[1755325465530,4.6681,4430.7,4430.6,1.4939]
[1755325465731,4.81317852,4430.7,4430.6,22.1609]
[1755325465928,4.81317852,4430.7,4430.6,21.8995]
[1755325467433,4.19037852,4430.7,4430.6,21.8995]
[1755325467634,3.35287852,4430.7,4430.6,22.1609]
[1755325468132,3.35287514,4430.7,4430.6,22.1609]
[1755325468736,3.61697514,4430.7,4430.6,22.1609]
[1755325469635,0.40917514,4430.7,4430.6,22.1609]
[1755325469935,0.14507514,4430.7,4430.6,22.1609]
[1755325470536,0.98257514,4430.7,4430.6,22.1609]
[1755325470936,1.60537514,4430.7,4430.6,22.1609]
[1755325471137,1.60537514,4430.7,4430.6,22.1589]
[1755325471340,1.60537514,4430.7,4430.6,21.8975]
[1755325471835,0.14507514,4430.7,4430.6,22.1589]
[1755325472035,3.2078,4431.3,4430.6,21.2615]
[1755325472343,0.9427,4430.9,4430.8,1.4939]
[1755325472538,1.08781831,4430.9,4430.8,22.1579]
[1755325472936,1.35191831,4430.9,4430.8,1.4939]
[1755325473136,1.35191831,4430.9,4430.8,22.1579]
[1755325473637,0.98261831,4430.9,4430.8,22.1579]
[1755325473843,0.40921831,4430.9,4430.8,22.1579]
[1755325474740,0.2641,4430.7,4430.4,0.636]
[1755325474937,1.4603,4430.5,4430.4,1.056]
[1755325475138,1.4603,4430.5,4430.4,21.8955]
[1755325476741,1.4603,4430.5,4430.4,22.1569]
[1755325481344,0.8375,4430.5,4430.4,22.1569]
[1755325481548,0.595,4430.5,4430.4,22.1569]
[1755325482748,0.595,4430.5,4430.4,1.4939]
[1755325482949,0.595,4430.5,4430.4,22.1539]
[1755325485054,0.4321,4430.5,4430.4,22.1539]
[1755325485242,0.8759,4431.2,4430.5,0.636]
[1755325485449,1.4603,4431.2,4431.1,1.056]
[1755325485648,1.60548729,4431.2,4431.1,21.714]
[1755325486660,1.60548729,4431.2,4431.1,22.1519]
[1755325486952,1.60548729,4431.2,4431.1,21.8905]
[1755325488952,1.60548729,4431.2,4431.1,20.658]
[1755325489357,0.8824,4431.1,4430.3,3.2078]
[1755325489552,1.4786,4430.5,4430.4,21.8637]
[1755325489950,1.4786,4430.5,4430.4,22.1269]
[1755325490458,0.6027,4430.5,4430.4,22.1269]
[1755325491152,1.4786,4430.5,4430.4,22.1269]
[1755325491453,1.4786,4430.5,4430.4,21.8637]
[1755325492655,0.5962,4430.2,4430.1,2.4425936]
[1755325492856,1.4786,4430.2,4430.1,21.7025]
[1755325494457,1.4786,4430.2,4430.1,20.655]
[1755325494656,1.4786,4430.1,4430.0,1.2067]
[1755325494858,1.4786,4430.1,4430.0,21.8607]
[1755325500267,1.4786,4430.1,4430.0,22.1239]
[1755325501360,1.4786,4430.1,4430.0,21.0705]
[1755325501552,1.4786,4430.1,4430.0,21.6995]
[1755325501867,1.4786,4430.1,4430.0,21.8587]
[1755325502662,0.3701,4430.4,4430.1,0.3691]
[1755325502864,1.4786,4430.7,4430.6,1.4699]
[1755325503054,1.62442115,4430.7,4430.6,1.4699]
[1755325504860,0.14582115,4430.7,4430.6,1.2067]
[1755325505166,0.14582115,4430.7,4430.6,1.4699]
[1755325505865,0.39962115,4430.7,4430.6,1.4699]
[1755325506070,0.14582115,4430.7,4430.6,1.4699]
[1755325506459,0.39962115,4430.7,4430.6,1.4699]
[1755325507062,0.57592115,4430.7,4430.6,1.4699]
[1755325507359,1.62442115,4430.7,4430.6,1.4699]
[1755325513069,1.62442115,4430.7,4430.6,1.2067]
[1755325514070,3.07557367,4430.7,4430.6,1.2067]
[1755325514468,2.82177367,4430.7,4430.0,2.2839936]
[1755325514672,0.5962,4430.2,4430.1,21.3451]
[1755325514867,1.62442115,4430.2,4430.1,21.5938]
[1755325515171,1.62442115,4430.2,4430.1,22.1169]
[1755325516170,1.62442002,4430.2,4430.1,22.1169]
[1755325516975,1.62442002,4430.2,4430.1,1.4699]
[1755325517176,1.62442002,4430.2,4430.1,22.1159]
[1755325518869,1.36592002,4430.2,4430.1,22.1159]
[1755325519168,1.61462002,4430.2,4430.1,22.1159]
[1755325521571,1.24452002,4430.2,4430.1,22.1004]
[1755325521770,0.14582002,4430.2,4430.1,22.1004]
[1755325522276,0.40672002,4430.2,4430.1,22.1004]
[1755325523476,0.82592002,4430.2,4430.1,22.1004]
[1755325523977,1.38752002,4430.2,4430.1,22.1004]
[1755325524176,1.62832002,4430.2,4430.1,22.1004]
[1755325526477,1.62832002,4430.2,4430.1,21.8371]
[1755325527379,1.62832002,4430.2,4430.1,1.1931]
[1755325527581,1.62832002,4430.2,4430.1,21.8341]
[1755325529177,1.62832002,4430.2,4430.1,22.0974]
[1755325529479,0.57722002,4430.2,4430.1,22.0974]
[1755325530782,0.82592002,4430.2,4430.1,22.0974]
[1755325530983,1.38752002,4430.2,4430.1,22.0974]
[1755325531780,0.74482002,4430.2,4430.1,22.0974]
[1755325532084,0.40672002,4430.2,4430.1,22.0974]
[1755325532479,0.82592002,4430.2,4430.1,22.0974]
[1755325532978,1.21992002,4430.2,4430.1,22.0974]
[1755325533383,1.38752002,4430.2,4430.1,22.0974]
[1755325533581,0.40672002,4430.2,4430.1,22.0974]
[1755325534286,0.57722002,4430.2,4430.1,22.0974]
[1755325534480,0.40672002,4430.2,4430.1,22.0974]
[1755325534681,0.14582002,4430.2,4430.1,22.0974]
[1755325534881,0.14582002,4430.2,4430.1,24.1214936]
[1755325535286,3.4687,4430.8,4430.7,0.323]
[1755325535482,3.61134589,4430.8,4430.7,22.0797]
[1755325535686,4.03054589,4430.8,4430.7,22.0797]
[1755325535886,3.78184589,4430.8,4430.7,22.0797]
[1755325536084,4.59214589,4430.8,4430.7,22.0797]
[1755325536492,4.83293022,4430.8,4430.7,22.0797]
[1755325536789,1.62513022,4430.8,4430.7,22.0797]
[1755325537592,1.4825,4430.4,4430.2,2.0240936]
[1755325537793,1.62513272,4430.3,4430.2,0.8554]
[1755325537992,1.62513272,4430.3,4430.2,21.4924]
[1755325538494,1.62513272,4430.3,4430.2,20.636]
[1755325538495,0.72153272,4430.3,4430.2,20.636]
[1755325538982,1.36423272,4430.3,4430.0,2.6318936]
[1755325539186,2.03005252,4430.1,4429.9,2.0240936]
[1755325539386,2.03005252,4430.1,4429.6,0.8711]
[1755325539387,1.4825,4429.9,4429.8,1.0155]
[1755325539589,1.62513272,4429.9,4429.8,21.6515]
[1755325540492,1.62513272,4429.9,4429.8,21.6505]
[1755325540790,1.62513272,4429.9,4429.8,1.0155]
[1755325540997,1.62513272,4429.9,4429.8,21.6515]
[1755325541793,0.9036,4429.8,4429.6,0.3615]
[1755325542094,1.4825,4429.8,4429.7,20.635]
[1755325542299,1.62511159,4429.8,4429.7,21.4904]
[1755325542791,0.9036,4429.7,4429.5,2.0240936]
[1755325543095,0.9036,4429.3,4429.2,20.635]
[1755325543295,1.62511159,4429.3,4429.2,20.635]
[1755325544496,0.72151159,4429.3,4428.8,3.2078]
[1755325544802,1.4825,4428.9,4428.8,4.0632]
[1755325544997,1.4825,4428.9,4428.8,25.0212]
[1755325545299,1.4825,4428.9,4428.8,24.7749]
[1755325545698,1.4825,4428.9,4428.8,25.0212]
[1755325546094,1.4825,4428.9,4428.8,24.6597]
[1755325546300,1.4825,4428.9,4428.8,23.8428]
[1755325546501,1.4825,4428.9,4428.8,25.0212]
[1755325546798,0.6427,4429.5,4428.8,25.0212]
[1755325547004,3.2078,4429.7,4429.3,1.4417]
[1755325547302,3.2078,4429.7,4428.7,0.45123]
[1755325547303,0.6549,4430.2,4429.6,0.8339]
[1755325547502,0.6549,4430.2,4429.4,23.8428]
[1755325547503,1.4825,4430.2,4430.1,1.1784]
[1755325547703,1.62483397,4430.2,4430.1,21.8134]
[1755325547904,1.20853397,4430.2,4430.1,21.8134]
[1755325548106,1.62483397,4430.2,4430.1,21.8134]
[1755325549304,1.62485687,4430.2,4430.1,21.8134]
[1755325550404,1.64865687,4430.2,4430.1,21.8134]
[1755325550794,1.64865687,4430.2,4430.1,23.26455252]
[1755325551503,1.64865687,4430.2,4430.1,1.45115252]
[1755325551697,1.64865687,4430.2,4430.1,20.633]
[1755325551893,1.64865687,4430.2,4430.1,21.2825]
[1755325552099,1.64865687,4430.2,4430.1,21.7011]
[1755325552599,1.64865687,4430.2,4430.1,21.4528]
[1755325552907,1.64865687,4430.2,4430.1,21.0554]
[1755325553504,1.64865687,4430.2,4430.1,0.4224]
[1755325553807,1.64865687,4430.2,4430.1,21.0554]
[1755325554008,1.64865687,4430.2,4430.1,21.8656]
[1755325554202,1.64865687,4430.2,4430.1,21.0554]
[1755325555106,1.64865687,4430.2,4430.1,21.8656]
[1755325555501,1.00775687,4430.2,4430.1,22.1203]
[1755325555707,0.40325687,4430.2,4430.1,22.1203]
[1755325556003,0.57915687,4430.2,4430.1,22.1203]
[1755325556307,1.01895687,4430.2,4430.1,22.1203]
[1755325556606,1.64865687,4430.2,4430.1,22.1203]
[1755325556802,1.64867055,4430.2,4430.1,22.1203]
[1755325557105,1.27087055,4430.2,4430.1,22.1203]
[1755325558206,1.64867055,4430.2,4430.1,22.1203]
[1755325559302,3.2078,4430.4,4430.2,0.6457]
[1755325559502,0.2609,4430.4,4430.3,2.93845252]
[1755325559804,0.40325558,4430.4,4430.3,2.93845252]
[1755325560208,3.2078,4431.0,4430.3,1.4873]
[1755325560401,4.0844,4431.0,4430.9,2.03805252]
[1755325560603,4.22673738,4431.0,4430.9,23.56745252]
[1755325561209,4.60453738,4431.0,4430.9,23.56745252]
[1755325561410,1.39673738,4431.0,4430.9,23.56745252]
[1755325561602,1.2544,4431.0,4430.9,23.56745252]
[1755325564211,0.9913,4431.0,4430.9,23.56745252]
[1755325564810,3.6446,4431.6,4431.5,1.4873]
[1755325565011,3.78681436,4431.6,4431.5,22.1123]
[1755325565205,3.96351436,4431.6,4431.5,22.1123]
[1755325565407,4.60441436,4431.6,4431.5,22.1123]
[1755325566202,4.85631436,4431.6,4431.5,22.1123]
[1755325566806,4.85631436,4431.6,4431.5,21.8576]
[1755325567608,4.85620568,4431.6,4431.5,21.8576]
[1755325567813,4.8562057,4431.6,4431.5,21.8576]
[1755325568002,4.7141,4431.6,4431.5,21.8576]
[1755325568206,4.7141,4431.6,4431.5,22.1123]
[1755325568610,4.2743,4431.6,4431.5,22.1123]
[1755325568810,4.451,4431.6,4431.5,22.1123]
[1755325569114,4.7141,4431.6,4431.5,22.1123]
[1755325569614,4.7141,4431.6,4431.5,1.2326]
[1755325569815,4.7141,4431.6,4431.5,21.8546]
[1755325570115,4.7141,4431.6,4431.5,22.1093]
[1755325572213,3.2078,4431.6,4431.5,21.8546]
[1755325572408,0.2609,4431.6,4431.5,22.1093]
[1755325573216,0.4368,4431.6,4431.5,22.1093]
[1755325573410,0.8766,4431.6,4431.5,23.56045252]
[1755325573608,1.2544,4431.6,4431.5,23.56045252]
[1755325574111,3.3078,4432.2,4431.5,23.56045252]
[1755325574312,0.1,4432.2,4432.1,0.2547]
[1755325574521,0.1,4432.2,4432.1,22.1063]
[1755325574916,1.0018,4432.2,4432.1,20.618]
[1755325575117,1.6063,4432.2,4432.1,20.618]
[1755325575315,0.6045,4431.8,4431.7,3.2078]
[1755325575618,1.5063,4431.8,4431.7,23.8258]
[1755325576318,1.5063,4431.8,4431.7,24.2232]
[1755325576514,1.5063,4431.8,4431.7,23.8258]
[1755325577014,1.5063,4431.8,4431.7,20.618]
[1755325579223,1.5063,4431.8,4431.7,21.4248]
[1755325579424,1.5063,4431.8,4431.7,21.6874]
[1755325579920,1.5063,4431.8,4431.7,21.8544]
[1755325582716,1.2544,4431.8,4431.7,21.8544]
[1755325582922,3.7949,4432.1,4432.0,1.0837]
[1755325583122,3.93697983,4432.1,4432.0,23.53145252]
[1755325583323,4.56287983,4432.1,4432.0,23.53145252]
[1755325583618,3.76047983,4432.1,4432.0,23.29215252]
[1755325583818,3.76047983,4432.1,4432.0,23.53145252]
[1755325584025,4.18177983,4432.1,4432.0,23.53145252]
[1755325584226,4.54357983,4432.1,4432.0,23.53145252]
[1755325584825,4.80767983,4432.1,4432.0,23.53145252]
[1755325585923,1.59987983,4432.1,4432.0,23.53145252]
[1755325586119,0.14207983,4432.1,4432.0,23.53145252]
[1755325586323,0.1,4432.2,4432.0,23.53145252]
[1755325586324,0.1,4432.2,4432.1,1.4663]
[1755325587121,1.5578,4432.2,4432.1,2.41555252]
[1755325587328,1.5578,4432.2,4432.1,20.8659]
[1755325587517,1.5578,4432.2,4432.1,21.839]
[1755325587924,1.5578,4432.2,4432.1,23.52945252]
[1755325588124,1.5578,4432.2,4432.1,23.29015252]
[1755325588329,1.5578,4432.2,4432.1,23.52945252]
[1755325589224,1.5578,4432.2,4432.1,23.29015252]
[1755325589429,1.70013679,4432.2,4432.1,21.839]
[1755325589729,1.70013679,4432.2,4432.1,23.52945252]
[1755325592124,1.70013679,4432.2,4432.1,23.29015252]
[1755325592526,1.70013679,4432.2,4432.1,21.839]
[1755325593227,1.70013679,4432.2,4432.1,21.4094]
[1755325594329,1.70013679,4432.2,4432.1,21.672]